bitfinex/quotes_ETHUSD_20241225
["timestamp","ask_amount","ask_price","bid_price","bid_amount"]
[1735116408344,3.66246,3493.5,3493.1,0.01]
[1735116409975,0.8,3493.5,3493.1,0.01]
[1735116410484,4.05993639,3493.7,3493.1,0.01]
[1735116410694,5.78949465,3493.7,3493.1,0.01]
[1735116411887,0.97759904,3493.6,3493.1,0.01]
[1735116412252,3.83996904,3493.6,3493.1,0.01]
[1735116412756,2.86262,3493.3,3493.1,0.01]
[1735116413342,2.86248,3493.5,3493.1,0.01]
[1735116413688,0.97759904,3493.6,3493.3,0.55]
[1735116416390,2.17523543,3493.9,3493.3,0.55]
[1735116417683,3.64228546,3494.0,3493.7,0.55]
[1735116417851,3.64228546,3494.0,3493.9,0.55]
[1735116418056,3.64228546,3494.0,3493.9,1.318]
[1735116418570,3.64228546,3494.0,3493.9,2.036028]
[1735116418787,3.64228546,3494.0,3493.9,16.34814353]
[1735116418988,1.19763639,3494.6,3494.4,0.818]
[1735116419714,1.19763639,3494.6,3494.5,0.55]
[1735116420523,0.57668274,3495.0,3494.5,0.55]
[1735116420870,0.82,3494.9,3494.3,0.55]
[1735116421226,2.8614,3494.8,3494.2,0.55]
[1735116421428,3.28720827,3494.8,3494.2,0.55]
[1735116422688,0.42580827,3494.8,3494.3,0.818]
[1735116422891,0.57668274,3495.0,3494.4,0.55]
[1735116425423,0.57668274,3495.0,3494.5,0.8314]
[1735116425622,1.19763639,3495.3,3494.6,0.55]
[1735116425773,0.8191,3495.5,3494.6,0.55]
[1735116425774,3.67993,3495.5,3494.6,0.55]
[1735116426411,0.57566571,3495.2,3494.6,0.55]
[1735116426614,0.57566571,3495.2,3494.6,1.274311]
[1735116428191,2.86083,3495.5,3494.8,0.55]
[1735116428396,0.8191,3495.4,3494.1,0.8314]
[1735116428596,2.86179,3494.4,3493.2,11.31265553]
[1735116428778,2.86179,3494.4,3493.5,1.1934627]
[1735116428981,2.86179,3494.4,3493.3,2.62159406]
[1735116428982,2.86179,3494.4,3493.4,2.46828616]
[1735116430236,0.8191,3494.7,3493.4,2.46828616]
[1735116430528,0.8191,3494.5,3493.4,2.46828616]
[1735116430678,3.68125,3493.9,3493.4,2.46828616]
[1735116431080,0.8191,3493.9,3493.4,2.46828616]
[1735116431321,2.86221,3493.8,3493.2,8.44998553]
[1735116431531,2.86221,3493.8,3493.1,0.01]
[1735116431692,2.8627,3493.2,3493.1,0.01]
[1735116431897,3.96807,3493.2,3493.1,0.01]
[1735116437406,3.68149,3492.6,3492.5,1.85791588]
[1735116437608,2.86345,3492.3,3491.6,0.7923]
[1735116438759,2.86328,3492.5,3491.6,1.17043556]
[1735116439326,2.86311,3492.8,3491.7,0.55]
[1735116439553,2.86314,3492.7,3491.7,0.55]
[1735116439853,0.56046148,3492.4,3491.7,0.55]
[1735116440426,2.86314,3492.7,3491.7,0.55]
[1735116440657,2.86314,3492.7,3491.9,0.55]
[1735116441725,2.86314,3492.7,3492.1,0.55]
[1735116442836,0.8183,3492.9,3492.1,0.55]
[1735116443043,0.57215926,3492.6,3492.1,0.55]
[1735116444463,2.86333,3492.5,3492.1,0.55]
[1735116444752,3.28870893,3492.5,3492.1,0.55]
[1735116444956,0.42537893,3492.5,3492.0,0.7923]
[1735116445160,2.86346,3492.3,3491.5,0.7923]
[1735116446485,2.86346,3492.3,3491.6,0.55]
[1735116447990,1.39045926,3492.6,3491.6,0.55]
[1735116448144,2.86329,3492.5,3491.6,0.55]
[1735116449286,1.39045926,3492.6,3491.6,0.55]
[1735116449613,2.86336,3492.4,3491.6,0.55]
[1735116450767,0.42535593,3492.5,3491.6,0.55]
[1735116450984,0.42535593,3492.5,3491.7,0.8142]
[1735116451556,0.42535593,3492.5,3491.8,0.55]
[1735116456733,2.86301,3492.9,3492.0,0.55]
[1735116457024,0.57333879,3492.8,3492.4,0.55]
[1735116457522,2.86281,3493.1,3492.4,0.55]
[1735116458020,2.86287,3493.0,3492.4,0.55]
[1735116460930,0.57064382,3492.9,3492.4,0.55]
[1735116461830,2.86287,3493.0,3492.4,0.55]
[1735116462033,0.801,3493.6,3492.6,0.55]
[1735116462237,0.48523689,3494.0,3492.9,0.55]
[1735116462419,0.48523689,3494.0,3493.1,0.55]
[1735116462420,2.86207,3494.0,3493.1,0.55]
[1735116462583,2.86207,3494.0,3493.3,0.55]
[1735116463435,2.86216,3493.9,3493.3,0.55]
[1735116464680,0.58314386,3493.8,3493.3,0.55]
[1735116465489,2.86198,3494.1,3493.3,0.55]
[1735116465840,2.86179,3494.4,3493.7,0.55]
[1735116466370,2.86157,3494.6,3493.7,0.55]
[1735116466710,2.86157,3494.6,3493.9,0.55]
[1735116467026,2.8614,3494.8,3493.9,0.55]
[1735116467406,2.8614,3494.8,3493.9,0.8298]
[1735116467611,2.86109,3495.2,3494.2,0.55]
[1735116467852,2.86109,3495.2,3494.4,0.55]
[1735116468056,0.7648,3495.4,3494.4,0.55]
[1735116468356,2.86108,3495.2,3494.4,0.55]
[1735116470063,0.58134934,3495.0,3494.4,0.55]
[1735116471770,0.58134934,3495.0,3494.5,0.8298]
[1735116471984,0.58134934,3495.0,3494.6,0.55]
[1735116472986,2.86098,3495.3,3494.6,0.55]
[1735116473326,0.58609821,3495.1,3494.6,0.55]
[1735116473527,0.7648,3495.0,3494.0,0.8298]
[1735116473727,2.86162,3494.6,3494.0,0.8298]
[1735116473980,0.286162,3494.5,3493.6,0.8298]
[1735116474131,2.86229,3493.7,3493.0,1.79343334]
[1735116474325,0.7648,3494.4,3493.0,1.79343334]
[1735116474326,2.86248,3493.5,3493.2,2.02542222]
[1735116475559,2.86248,3493.5,3493.3,0.55]
[1735116475780,2.86226,3493.8,3493.3,0.55]
[1735116475986,0.55968138,3493.7,3493.3,0.55]
[1735116476358,3.42197138,3493.7,3493.3,0.55]
[1735116476559,0.55968138,3493.7,3493.3,0.55]
[1735116480263,1.33848138,3493.7,3493.3,0.55]
[1735116480481,2.86254,3493.4,3492.8,0.8192]
[1735116481301,2.86199,3494.1,3492.8,0.8192]
[1735116481504,2.86239,3493.6,3492.8,0.8192]
[1735116481708,2.86239,3493.6,3492.9,0.55]
[1735116481876,2.86239,3493.6,3492.9,35.55]
[1735116482474,2.86246,3493.5,3492.9,0.55]
[1735116482813,1.12288233,3493.6,3492.9,0.55]
[1735116482992,2.86245,3493.5,3492.9,0.55]
[1735116483163,2.86257,3493.4,3492.9,0.55]
[1735116486734,2.86262,3493.3,3492.9,0.55]
[1735116487413,1.12288233,3493.6,3492.9,0.55]
[1735116487414,2.86248,3493.5,3492.9,0.55]
[1735116488833,3.26101623,3493.5,3492.9,0.55]
[1735116489685,2.86267,3493.3,3492.9,0.55]
[1735116492603,2.86244,3493.6,3492.9,0.55]
[1735116493618,2.86244,3493.6,3493.0,35.0]
[1735116494155,2.86222,3493.8,3493.2,0.7741]
[1735116494305,3.28416533,3493.8,3493.3,0.55]
[1735116494654,2.8618,3494.4,3493.4,0.7741]
[1735116494881,4.86943888,3494.6,3493.6,0.55]
[1735116495085,2.86182,3494.3,3493.6,0.55]
[1735116496136,2.86188,3494.3,3493.6,0.55]
[1735116496472,0.58604845,3494.4,3493.6,0.55]
[1735116496673,2.86189,3494.2,3493.6,0.55]
[1735116499563,3.44778845,3494.4,3493.6,0.55]
[1735116500437,2.86174,3494.4,3493.6,0.55]
[1735116500946,2.86181,3494.3,3493.6,0.55]
[1735116501168,2.86189,3494.2,3493.6,0.55]
[1735116502502,1.095789,3494.1,3493.6,0.55]
[1735116502652,2.86237,3493.7,3493.2,0.7741]
[1735116503048,2.86213,3493.9,3493.2,0.7741]
[1735116504088,2.86213,3493.9,3493.3,0.55]
[1735116505169,0.8096,3494.4,3493.3,0.55]
[1735116505553,2.86238,3493.6,3493.3,0.55]
[1735116505751,0.368108,3493.6,3492.9,0.7907]
[1735116506001,2.86264,3493.3,3492.9,0.7907]
[1735116507523,2.86258,3493.4,3492.6,0.7907]
[1735116507727,2.86279,3493.1,3492.6,0.7907]
[1735116507909,2.86261,3493.4,3492.6,0.7907]
[1735116508098,2.86261,3493.4,3492.8,0.7907]
[1735116508999,2.86261,3493.4,3492.9,0.55]
[1735116509197,2.86217,3493.9,3492.9,0.55]
[1735116509403,2.86246,3493.5,3492.9,0.55]
[1735116509589,2.86217,3493.9,3492.9,0.70393322]
[1735116509785,0.8174,3493.3,3492.9,0.55]
[1735116510128,2.86286,3493.0,3492.3,1.19562222]
[1735116510519,2.86286,3493.0,3492.4,1.19562222]
[1735116511210,2.86286,3493.0,3492.5,0.7647]
[1735116511541,2.86286,3493.0,3492.6,0.55]
[1735116511685,1.77446117,3493.9,3492.6,0.55]
[1735116511686,2.8627,3493.2,3492.6,0.55]
[1735116511886,2.86256,3493.4,3492.8,0.55]
[1735116512792,0.57619229,3493.9,3493.0,0.55]
[1735116512988,2.86232,3493.7,3493.0,1.3147]
[1735116514535,2.86213,3493.9,3493.2,0.55]
[1735116514709,2.86213,3493.9,3493.3,0.7647]
[1735116514922,2.86213,3493.9,3493.4,0.55]
[1735116515131,2.86223,3493.8,3493.4,0.55]
[1735116522660,1.19826888,3494.1,3493.6,0.55]
[1735116522960,1.19826888,3494.1,3493.8,0.55]
[1735116523161,1.19826888,3494.1,3494.0,0.55]
[1735116523368,1.79740333,3494.2,3494.0,0.55]
[1735116523513,1.19826888,3494.5,3494.1,0.7782]
[1735116523718,1.19826888,3494.5,3494.3,0.7782]
[1735116524019,1.19826888,3494.5,3494.4,1.76102]
[1735116524733,4.05933888,3495.2,3494.4,1.76102]
[1735116524995,4.05933888,3495.2,3494.5,0.55]
[1735116525617,3.69518,3493.9,3493.2,3.58686668]
[1735116525823,1.28185116,3493.8,3493.2,3.58686668]
[1735116526049,2.86237,3493.6,3493.2,3.58686668]
[1735116526242,2.86262,3493.3,3493.2,3.58686668]
[1735116526449,2.86262,3493.3,3492.7,2.45186821]
[1735116526651,2.86262,3493.3,3491.5,8.67170136]
[1735116526817,3.43799222,3493.8,3491.6,8.10480554]
[1735116527018,0.72709922,3493.7,3492.1,2.86356]
[1735116527532,0.72709922,3493.7,3492.2,3.0]
[1735116527729,2.86246,3493.5,3492.3,0.55]
[1735116528466,0.72709922,3493.7,3492.5,0.55]
[1735116528779,2.86273,3493.2,3492.6,0.7782]
[1735116529121,2.86273,3493.2,3492.6,0.92492485]
[1735116529633,4.06225777,3493.5,3492.6,0.92492485]
[1735116529835,5.63479734,3493.5,3492.6,0.7782]
[1735116530237,1.19972777,3493.4,3492.6,0.7782]
[1735116530560,4.06226777,3493.4,3492.7,0.14669378]
[1735116531167,3.85427656,3493.4,3492.7,0.14669378]
[1735116531339,4.69564608,3493.4,3492.7,0.14669378]
[1735116531538,4.69564608,3493.4,3492.6,0.80682849]
[1735116531877,4.69564608,3493.4,3492.7,0.55]
[1735116532228,3.70390952,3493.4,3492.7,0.55]
[1735116532603,1.19972777,3493.5,3492.7,0.69669656]
[1735116532770,1.19972777,3493.5,3492.9,0.55]
[1735116533264,1.19972777,3493.5,3493.0,0.14669656]
[1735116533564,2.52669088,3493.7,3493.0,0.14669656]
[1735116533565,0.72709922,3493.7,3493.0,0.14669656]
[1735116533722,0.72709922,3493.7,3493.1,0.7782]
[1735116533923,0.72709922,3493.7,3493.1,0.92489656]
[1735116534350,1.19972777,3493.8,3493.1,0.92489656]
[1735116534554,1.19972777,3493.8,3493.2,0.14669656]
[1735116534761,4.06197777,3493.8,3493.2,0.14669656]
[1735116534973,2.86233,3493.7,3493.2,0.14669656]
[1735116535328,2.86233,3493.7,3493.1,0.7782]
[1735116535555,3.148563,3493.7,3493.1,0.7782]
[1735116536401,0.833,3493.5,3492.4,0.7782]
[1735116536573,2.86304,3492.8,3492.4,0.7782]
[1735116536751,3.232724,3492.7,3492.4,0.7782]
[1735116536956,3.232724,3492.7,3492.5,0.14659218]
[1735116537465,0.369604,3492.7,3492.3,1.19532664]
[1735116537680,0.833,3492.9,3492.3,1.19532664]
[1735116538043,0.57837997,3492.8,3492.3,1.19532664]
[1735116538374,2.86345,3492.3,3491.8,0.7782]
[1735116539971,2.03272777,3492.9,3491.8,0.7782]
[1735116540131,2.86365,3492.1,3491.4,0.8053]
[1735116541009,0.7989,3492.2,3491.4,0.8053]
[1735116542295,3.66217,3492.6,3491.5,0.55]
[1735116542480,1.19972777,3492.6,3491.6,0.8053]
[1735116543711,2.86338,3492.4,3491.6,0.8053]
[1735116543916,0.286338,3492.3,3491.6,0.8053]
[1735116544707,2.8631,3492.8,3491.6,0.8053]
[1735116544875,2.86311,3492.7,3491.6,0.8053]
[1735116545082,4.06283777,3492.7,3491.6,0.8053]
[1735116546192,1.19972777,3492.7,3491.7,0.55]
[1735116546401,1.19972777,3492.7,3491.2,3.0]
[1735116546402,1.19972777,3492.7,3492.0,0.8053]
[1735116546585,1.19972777,3492.9,3492.1,0.55]
[1735116548511,4.66238166,3493.1,3492.1,0.55]
[1735116548512,2.86279,3493.1,3492.1,0.55]
[1735116551264,1.19972777,3493.4,3492.3,0.55]
[1735116551472,1.82828301,3493.4,3492.6,0.8053]
[1735116552569,2.99931943,3493.9,3491.8,3.02862876]
[1735116552570,4.19972777,3493.9,3492.9,1.3553]
[1735116553713,3.0,3493.9,3492.9,1.3553]
[1735116553877,2.86205,3494.0,3492.9,3.41294]
[1735116554192,2.86205,3494.0,3492.5,8.10480554]
[1735116554193,4.86052777,3494.2,3493.2,0.8238]
[1735116554397,3.52799194,3494.1,3493.2,0.8238]
[1735116554783,2.86207,3494.0,3493.2,0.8238]
[1735116555129,0.66601194,3494.1,3492.9,0.8238]
[1735116555314,2.86239,3493.6,3492.9,0.8238]
[1735116557928,2.86246,3493.5,3492.9,0.8238]
[1735116558502,2.86254,3493.5,3492.9,0.8238]
[1735116558833,2.86256,3493.4,3492.9,0.8238]
[1735116559454,0.7834,3493.9,3492.9,0.8238]
[1735116559601,2.86235,3493.7,3492.9,0.8238]
[1735116559809,0.364575,3493.6,3492.9,0.8238]
[1735116561703,2.86247,3493.5,3492.9,0.8238]
[1735116562118,2.86255,3493.4,3492.9,0.8238]
[1735116564741,3.64605,3493.3,3492.3,0.8238]
[1735116564938,0.364605,3493.2,3492.3,0.8238]
[1735116565664,3.227325,3493.2,3492.3,0.8238]
[1735116570398,0.364605,3493.2,3492.3,0.8238]
[1735116570568,3.64608,3493.3,3492.3,0.8238]
[1735116570857,4.22978643,3493.3,3492.3,0.8238]
[1735116571058,2.86294,3493.0,3492.3,0.8238]
[1735116571441,2.86273,3493.2,3492.3,0.8238]
[1735116576333,2.86298,3492.9,3492.3,0.8238]
[1735116576525,3.149328,3492.8,3492.3,0.8238]
[1735116577668,0.286298,3492.8,3492.3,0.8238]
[1735116578165,1.19972777,3492.9,3492.3,0.8238]
[1735116579447,2.86279,3493.1,3492.3,0.8238]
[1735116581722,2.86288,3493.0,3492.3,0.8238]
[1735116581924,3.85491878,3493.0,3492.3,0.8238]
[1735116583151,2.86336,3492.4,3491.7,0.7508]
[1735116584723,2.86346,3492.3,3491.7,0.7508]
[1735116584924,2.86357,3492.2,3491.7,0.7508]
[1735116585241,2.86361,3492.1,3491.7,0.7508]
[1735116585879,0.8007,3492.4,3491.7,0.7508]
[1735116586195,2.86373,3492.0,3491.7,0.7508]
[1735116587277,2.86373,3492.0,3491.1,1.3271]
[1735116587477,2.86386,3491.8,3491.1,0.7771]
[1735116587877,2.86403,3491.6,3491.1,0.7771]
[1735116588108,3.8804343,3492.3,3490.8,1.97242664]
[1735116588109,0.8007,3491.5,3490.8,1.97242664]
[1735116588311,2.86426,3491.3,3490.8,1.97242664]
[1735116588514,2.86426,3491.3,3490.8,0.7771]
[1735116588815,2.86439,3491.2,3490.8,0.7771]
[1735116593960,2.86439,3491.2,3490.3,0.8094]
[1735116594318,2.86443,3491.1,3490.3,0.8094]
[1735116595197,0.7884,3491.0,3490.2,0.1747483]
[1735116595698,3.230806,3491.3,3490.2,0.1747483]
[1735116595699,0.7884,3490.8,3490.2,0.1747483]
[1735116595895,2.86493,3490.5,3490.2,0.1747483]
[1735116596146,0.286493,3490.4,3490.2,0.1747483]
[1735116596344,2.86508,3490.3,3490.2,0.1747483]
[1735116598249,3.65348,3490.3,3490.2,0.1747483]
[1735116599543,6.65348,3490.3,3490.2,0.1747483]
[1735116606656,0.8227,3490.7,3490.2,0.1747483]
[1735116606950,2.86483,3490.6,3490.2,0.1747483]
[1735116607150,0.8227,3491.1,3490.2,0.1747483]
[1735116607299,2.86508,3490.3,3490.2,0.1747483]
[1735116609001,3.68778,3490.3,3490.2,0.1747483]
[1735116611227,2.86508,3490.3,3490.2,0.1747483]
[1735116613346,3.63883,3490.9,3490.2,0.1747483]
[1735116613503,0.23889238,3491.0,3490.3,0.7758]
[1735116613504,2.86474,3490.8,3490.3,0.7758]
[1735116613704,0.61036324,3490.8,3490.3,0.7758]
[1735116613937,2.8645,3491.1,3490.3,0.7758]
[1735116614268,3.230756,3491.3,3490.4,0.809]
[1735116614909,2.86441,3491.2,3490.4,0.809]
[1735116615106,2.86461,3490.9,3490.4,0.809]
[1735116615360,3.151071,3490.9,3490.4,0.809]
[1735116615784,2.86469,3490.8,3490.4,0.809]
[1735116617650,0.286461,3490.9,3490.4,0.809]
[1735116617856,2.86485,3490.6,3490.4,0.809]
[1735116618195,2.86491,3490.5,3490.4,0.809]
[1735116618698,0.7582,3491.0,3490.4,0.809]
[1735116618882,2.86476,3490.7,3490.4,0.809]
[1735116624272,2.86459,3490.9,3490.4,0.809]
[1735116624471,3.151049,3490.9,3490.4,0.809]
[1735116625599,0.286459,3490.9,3490.4,0.809]
[1735116626758,2.86476,3490.7,3490.4,0.809]
[1735116627372,2.86491,3490.5,3490.4,0.809]
[1735116627574,3.151401,3490.5,3490.2,0.9837483]
[1735116627789,2.86508,3490.3,3490.2,0.9837483]
[1735116627994,2.86508,3490.3,3490.2,0.1747483]
[1735116630278,3.69508,3490.3,3490.2,0.1747483]
[1735116630613,3.69508,3490.3,3490.2,8.3e-06]
[1735116630614,6.69508,3490.3,3490.2,8.3e-06]
[1735116630850,2.86597,3489.3,3489.0,0.807]
[1735116631960,2.86608,3489.1,3488.3,0.807]
[1735116632557,5.86565,3489.6,3488.3,0.807]
[1735116632853,2.86627,3488.9,3488.3,0.807]
[1735116633333,0.83,3489.7,3488.3,0.807]
[1735116633334,2.86622,3489.0,3488.3,0.807]
[1735116633534,0.286622,3488.9,3488.3,0.807]
[1735116634637,2.8664,3488.7,3488.3,0.807]
[1735116634951,0.83,3489.1,3488.3,0.807]
[1735116635119,0.83,3489.1,3488.1,0.01]
[1735116635317,2.8668,3488.2,3488.1,0.01]
[1735116636149,0.83,3488.5,3488.1,0.01]
[1735116636315,0.383,3488.4,3488.1,0.01]
[1735116637454,2.86678,3488.3,3488.1,0.01]
[1735116640046,3.69678,3488.3,3488.1,0.01]
[1735116640423,2.86678,3488.3,3488.1,0.01]
[1735116641571,0.58168103,3488.9,3488.1,0.817]
[1735116641572,3.0,3488.9,3488.1,0.817]
[1735116641774,1.19972777,3489.0,3488.1,2.87682]
[1735116642071,1.19972777,3489.0,3488.2,0.807]
[1735116642378,1.19972777,3489.0,3488.5,0.807]
[1735116643564,2.86578,3489.5,3488.5,0.807]
[1735116644033,3.0,3489.4,3488.5,0.807]
[1735116646883,0.8198,3490.0,3488.4,0.7855]
[1735116647183,2.86578,3489.5,3488.5,0.7855]
[1735116647349,2.86582,3489.4,3488.5,0.7855]
[1735116647751,2.86592,3489.3,3488.5,0.7855]
[1735116647957,0.286578,3489.5,3488.5,0.7855]
[1735116648159,2.86617,3489.0,3488.5,0.7855]
[1735116649243,0.8198,3489.4,3488.5,0.7855]
[1735116649438,2.86598,3489.3,3488.5,0.7855]
[1735116649839,2.86568,3489.6,3488.5,0.7855]
[1735116650042,1.19972777,3489.9,3489.0,2.86611]
[1735116650247,1.19972777,3489.9,3489.1,0.7855]
[1735116651157,2.8655,3489.8,3489.1,0.7855]
[1735116655694,2.86534,3490.0,3489.1,0.7855]
[1735116656339,2.86541,3489.9,3489.1,0.7855]
[1735116656939,2.86549,3489.8,3489.1,0.7855]
[1735116657149,0.286549,3489.7,3489.1,0.7855]
[1735116659063,3.9075455,3490.3,3489.1,0.7855]
[1735116659064,2.86534,3490.0,3489.1,0.7855]
[1735116660598,3.9075455,3490.3,3489.1,0.7855]
[1735116660599,1.0424055,3490.3,3489.1,0.7855]
[1735116660834,1.48621877,3490.5,3489.6,0.7841]
[1735116661273,2.86504,3490.4,3489.6,0.7841]
[1735116665889,2.86513,3490.3,3489.6,0.7841]
[1735116666087,0.3151621,3490.2,3489.6,0.7841]
[1735116670794,2.86513,3490.3,3489.6,0.7841]
[1735116671037,3.151451,3490.5,3489.6,0.7841]
[1735116671240,0.286491,3490.5,3489.7,0.7841]
[1735116672823,2.86485,3490.6,3489.7,0.7841]
[1735116674947,2.86491,3490.6,3489.7,0.7841]
[1735116678307,2.86469,3490.8,3489.8,1.3705]
[1735116678513,2.86454,3491.0,3489.9,2.86538]
[1735116678716,2.86454,3491.0,3490.0,0.8205]
[1735116678945,0.70642678,3490.9,3490.0,0.8205]
[1735116679153,1.19972777,3491.2,3490.1,0.8205]
[1735116679448,2.86443,3491.1,3490.2,0.8205]
[1735116682095,2.86451,3491.0,3490.2,0.8205]
[1735116682515,2.8645,3491.1,3489.9,0.8205]
[1735116682856,0.36401,3491.0,3489.9,0.8205]
[1735116683223,2.86475,3490.7,3489.9,0.8205]
[1735116683424,2.86518,3490.2,3489.3,0.8205]
[1735116683674,2.86524,3490.1,3489.3,0.8205]
[1735116684824,2.86489,3490.6,3489.3,0.8205]
[1735116685027,0.7756,3490.3,3489.3,0.8205]
[1735116685364,2.86542,3489.9,3489.3,0.8205]
[1735116686271,1.19690337,3490.7,3489.8,0.8205]
[1735116686568,1.19690337,3490.7,3489.4,0.02865757]
[1735116686569,1.19690337,3490.7,3490.0,0.8205]
[1735116686915,1.19690337,3490.6,3490.0,0.8205]
[1735116687118,0.29922584,3490.5,3490.0,0.8205]
[1735116687535,1.19690337,3490.6,3490.0,0.8205]
[1735116688089,1.19690337,3490.6,3490.2,0.8205]
[1735116688293,1.19690337,3490.6,3489.4,3.0]
[1735116688294,1.19690337,3490.6,3490.4,0.764]
[1735116688584,1.19690337,3490.8,3490.4,0.764]
[1735116688956,1.19690337,3490.8,3490.5,0.764]
[1735116690788,1.19690337,3491.3,3490.5,0.764]
[1735116691041,0.54713924,3491.2,3490.5,0.764]
[1735116691209,0.7854,3491.1,3490.0,0.764]
[1735116691390,2.86484,3490.6,3490.0,0.764]
[1735116692700,2.86468,3490.8,3490.0,0.764]
[1735116692905,3.516133,3490.8,3490.0,0.764]
[1735116693320,4.71303637,3490.8,3490.0,0.764]
[1735116694200,2.86484,3490.6,3490.0,0.764]
[1735116694607,1.84835637,3490.8,3490.0,0.764]
[1735116694608,0.651453,3490.8,3490.0,0.764]
[1735116694814,2.86483,3490.6,3489.3,0.7826]
[1735116695003,3.82108564,3490.7,3489.3,0.7826]
[1735116695572,2.86501,3490.4,3489.3,2.8659]
[1735116695773,2.86501,3490.4,3489.4,0.7826]
[1735116696170,1.19690337,3490.5,3489.2,5.73196]
[1735116696408,1.19690337,3490.5,3489.8,2.86548]
[1735116696624,1.19690337,3490.5,3490.0,0.7826]
[1735116696925,1.19690337,3490.5,3490.2,0.7826]
[1735116697718,1.19690337,3491.0,3490.2,0.7826]
[1735116699137,5.3461986,3491.1,3490.2,0.7826]
[1735116699138,6.54310197,3491.1,3490.2,0.7826]
[1735116699288,0.96570963,3491.0,3490.2,0.7826]
[1735116699935,3.44748823,3491.0,3490.2,0.7826]
[1735116701520,0.99271144,3490.9,3490.2,0.7826]
[1735116702765,3.15532444,3491.0,3490.2,0.7826]
[1735116703659,6.01983444,3491.0,3490.2,0.7826]
[1735116703959,0.83623287,3490.9,3490.2,0.7826]
[1735116704162,4.51573518,3490.9,3490.2,0.7826]
[1735116704859,2.86476,3490.7,3490.2,0.7826]
[1735116707068,3.67950231,3490.6,3490.2,0.7826]
[1735116708370,3.67950231,3490.7,3490.2,0.7826]
[1735116708535,4.93303097,3490.7,3490.2,0.7826]
[1735116709331,7.79779097,3490.7,3490.2,0.7826]
[1735116709658,4.93303097,3490.7,3490.2,0.7826]
[1735116710171,3.67950231,3490.6,3490.2,0.7826]
[1735116711625,6.54437231,3490.6,3490.2,0.7826]
[1735116711818,1.0384256,3490.5,3490.2,0.7826]
[1735116712676,4.71792791,3490.5,3490.2,0.7826]
[1735116713668,3.67950231,3490.5,3490.2,0.7826]
[1735116714037,2.48259894,3490.4,3490.2,0.7826]
[1735116714993,1.19690337,3490.7,3490.2,0.7826]
[1735116716529,2.18961481,3490.7,3490.2,0.7826]
[1735116723332,5.05440481,3490.7,3490.2,0.7826]
[1735116723535,0.91758802,3490.6,3490.2,0.7826]
[1735116723938,0.91758802,3490.6,3489.8,0.7991]
[1735116724267,2.86504,3490.4,3489.8,0.7991]
[1735116726237,1.19690337,3490.2,3489.8,0.7991]
[1735116727476,2.18961481,3490.2,3489.8,0.7991]
[1735116727658,0.83398974,3490.1,3489.8,0.7991]
[1735116728845,3.69929974,3490.1,3489.5,0.7991]
[1735116729002,0.99271144,3490.0,3489.5,0.7991]
[1735116730385,2.18961481,3489.9,3489.5,0.7991]
[1735116732106,3.68121626,3490.0,3489.6,0.55]
[1735116732307,3.68121626,3490.0,3489.6,0.7991]
[1735116732524,3.68121626,3490.0,3489.8,0.55]
[1735116732863,3.68121626,3490.0,3489.9,3.66451]
[1735116733020,3.68121626,3490.0,3489.9,4.085961]
[1735116733855,1.19690337,3490.7,3490.0,0.7668]
[1735116734011,1.19690337,3490.7,3490.2,0.7668]
[1735116735331,1.19690337,3490.8,3490.2,0.7668]
[1735116735544,1.19690337,3490.8,3490.2,3.63194]
[1735116735713,1.19690337,3490.8,3490.3,0.418194]
[1735116737159,1.19690337,3490.8,3490.7,0.7668]
[1735116737726,2.18961481,3491.0,3490.7,0.7668]
[1735116739367,2.18961481,3491.0,3490.8,3.63146]
[1735116739568,2.18961481,3491.0,3490.9,0.7668]
[1735116739718,1.19690337,3491.5,3490.9,0.7668]
[1735116741178,7.40569946,3491.8,3490.9,0.7668]
[1735116742322,0.99271144,3491.7,3490.9,0.7668]
[1735116742530,0.99271144,3491.7,3491.0,0.55]
[1735116742735,0.99271144,3491.7,3491.1,0.7668]
[1735116744379,3.85652144,3491.9,3491.1,0.7668]
[1735116744685,1.76057943,3491.9,3491.1,0.7668]
[1735116744986,0.99271144,3491.9,3491.1,0.7668]
[1735116745785,4.06052337,3492.1,3491.1,0.7668]
[1735116746132,1.19690337,3492.1,3491.1,0.7668]
[1735116746340,1.19690337,3492.1,3491.5,0.7668]
[1735116747281,1.19690337,3492.2,3491.5,0.7668]
[1735116747523,1.19690337,3492.2,3491.6,0.7668]
[1735116748323,1.19690337,3492.2,3491.7,0.55]
[1735116748479,1.19690337,3492.2,3491.8,0.7907]
[1735116748993,4.06002337,3492.7,3491.8,0.7907]
[1735116750135,1.19690337,3492.7,3491.8,0.7907]
[1735116750437,0.7705,3492.5,3491.8,0.7907]
[1735116750594,2.86344,3492.3,3491.8,0.7907]
[1735116752740,0.7705,3492.5,3491.8,0.7907]
[1735116752903,2.86328,3492.5,3491.8,0.7907]
[1735116754832,2.86334,3492.5,3491.8,0.7907]
[1735116757456,2.86344,3492.3,3491.8,0.7907]
[1735116758657,0.7705,3492.8,3491.8,0.7907]
[1735116758961,2.86329,3492.5,3491.8,0.7907]
[1735116759105,2.86313,3492.7,3491.8,0.7907]
[1735116759547,2.86313,3492.7,3491.8,0.81933546]
[1735116759753,3.63342,3493.0,3492.0,0.7907]
[1735116760057,3.0,3492.9,3492.0,0.7907]
[1735116760266,4.05963337,3493.2,3492.1,1.3407]
[1735116760404,4.05963337,3493.2,3492.3,0.55]
[1735116760609,4.05963337,3493.2,3492.4,0.7907]
[1735116761041,4.05963337,3493.2,3492.5,0.55]